{"text_format":"2","workbook":"xlsx","n_sheets":7,"sheets":["Záradék","Összesítő","Irtás, föld- és sziklamunka","Útburkolatalap és makadámburkol","Kőburkolat készítése","Bitumenes alap és makadámburkol","Útpályatartozékok készítése"],"not_rendered":{"charts":0,"images":0,"macros":0,"external_links":0,"defined_names":0,"comments":0,"pivot_tables":0},"unopened":[],"bounds":{"document_bytes":16777216,"sheet_cells":100000,"run_cost":"one","rows_first":2000,"rows_last":500,"rows_between":2000,"halvings":0,"cell_chars":16384,"cell_head_chars":4096},"cells_cut":0,"cells_raw":0,"read":"whole","date_system":"1900"}

{"sheet":"Záradék","index":0,"n_rows":32,"n_cols":4,"rows_kept":32,"cut":false,"hidden":false,"merged":[[6,0,6,3],[21,0,21,3],[25,2,25,3],[26,2,26,3],[27,2,27,3],[31,1,31,2],[0,0,0,3],[1,0,1,3],[2,0,2,3],[3,0,3,3],[4,0,4,3],[5,0,5,3]]}
{"$rows_empty":8}
[null,null,"                                       "]
[null,null,"                                       "]
["                                       ",null,"                                       "]
["                                       ",null,"                                       "]
["Békés, Oncsa iparterület fejlesztés",null,"                                       "]
["Útépítés",null,"                                       "]
[null,null,"                                       "]
[]
[]
["                                                                              "]
[]
["                                                                              "]
[]
["Költségvetés főösszesítő"]
["Megnevezés",null,"Anyagköltség","Díjköltség"]
["1. Építmény közvetlen költségei",null,{"$f":"ROUND(SUM(Összesítő!B2:B6),0)","v":64000},{"$f":"ROUND(SUM(Összesítő!C2:C6),0)","v":16000}]
["1.1 Közvetlen önköltség összesen",null,{"$f":"ROUND(C24,0)","v":64000},{"$f":"ROUND(D24,0)","v":16000}]
["2.1 ÁFA vetítési alap",null,{"$f":"ROUND(C25+D25,0)","v":80000}]
["2.2 Áfa",0.27,{"$f":"ROUND(C26*B27,0)","v":21600}]
["3.  A munka ára",null,{"$f":"ROUND(C26+C27,0)","v":101600}]
[]
[]
[]
[null,"Aláírás"]

{"sheet":"Összesítő","index":1,"n_rows":7,"n_cols":3,"rows_kept":7,"cut":false,"hidden":false,"merged":[]}
["Munkanem megnevezése","Anyag összege","Díj összege"]
["Irtás, föld- és sziklamunka",{"$f":"'Irtás, föld- és sziklamunka'!H17","v":0},{"$f":"'Irtás, föld- és sziklamunka'!I17","v":0}]
["Útburkolatalap és makadámburkolat készítése",{"$f":"'Útburkolatalap és makadámburkol'!H5","v":0},{"$f":"'Útburkolatalap és makadámburkol'!I5","v":0}]
["Kőburkolat készítése",{"$f":"'Kőburkolat készítése'!H5","v":0},{"$f":"'Kőburkolat készítése'!I5","v":0}]
["Bitumenes alap és makadámburkolat készítése",{"$f":"'Bitumenes alap és makadámburkol'!H8","v":0},{"$f":"'Bitumenes alap és makadámburkol'!I8","v":0}]
["Útpályatartozékok készítése",{"$f":"'Útpályatartozékok készítése'!H6","v":64000},{"$f":"'Útpályatartozékok készítése'!I6","v":16000}]
["Összesen:",{"$f":"ROUND(SUM(B2:B6),0)","v":64000},{"$f":"ROUND(SUM(C2:C6), 0)","v":16000}]

{"sheet":"Irtás, föld- és sziklamunka","index":2,"n_rows":17,"n_cols":9,"rows_kept":17,"cut":false,"hidden":false,"merged":[]}
["Ssz.","Tételszám","Tétel szövege","Menny.","Egység","Anyag egységár","Díj egységre","Anyag összesen","Díj összesen"]
[]
[4,"21-004-4.1.2-0120002","Talajjavító réteg készítése vonalas létesítményeknél, osztályozatlan kavicsból Nyers homokos kavics, NHK 0/63 RTT, KŐKA, Alsózsolca",480,"m3"]
[]
[5,"21-004-5.1.1.1","Tükörkészítés tömörítés nélkül, sík felületen gépi erővel, kiegészítő kézi munkával talajosztály: I-IV.",2400,"m2"]
[]
[6,"21-007-2.1.2-0990001","Földkitermelés bevágásban vagy anyagnyerő helyen és töltés- vagy depóniakészítés tömörítés nélkül, gépi erővel, 18%-os terephajlásig, I-IV. oszt. talajban, szállítás nélkül Szállító útvonal öntözése",1440,"m3"]
[]
[7,"21-008-2.2.3","Tömörítés bármely tömörítési osztályban gépi erővel, kis felületen, tömörségi fok: 95%",970,"m3"]
[]
[8,"21-008-3.1.1","Simító hengerlés a földmű  felületén, gépi erővel, 3,0 m szélességig",2400,"m2"]
[]
[9,"21-005-1.1.1","Kisméretű csatorna (nyílt árok) építése 1,00 m2 szelvényig, kézi erővel bármely konzisztenciájú talajban, talajosztály: I-II.",200,"m3"]
[]
[10,"K","Meglévő zúzottkő alap elbontása elszállítással",270,"m3"]
[]
[null,null,"Munkanem összesen:",{"$nulls":4},{"$f":"ROUND(SUM(H2:H16),0)","v":0},{"$f":"ROUND(SUM(I2:I16),0)","v":0}]

{"sheet":"Útburkolatalap és makadámburkol","index":3,"n_rows":5,"n_cols":9,"rows_kept":5,"cut":false,"hidden":false,"merged":[]}
["Ssz.","Tételszám","Tétel szövege","Menny.","Egység","Anyag egységár","Díj egységre","Anyag összesen","Díj összesen"]
[]
[2,"61-004-1.1-0110517","Szórt alap készítése, egy rétegben, 15-25 cm vastagságban, 4 cm hézagkitöltéssel, zúzottkőből vagy kohósalakkőből Nemes zúzottkő, NZ 55/100 Bazalt-Középkő, Uzsa",490,"m3"]
[]
[null,null,"Munkanem összesen:",{"$nulls":4},{"$f":"ROUND(SUM(H2:H4),0)","v":0},{"$f":"ROUND(SUM(I2:I4),0)","v":0}]

{"sheet":"Kőburkolat készítése","index":4,"n_rows":5,"n_cols":9,"rows_kept":5,"cut":false,"hidden":false,"merged":[]}
["Ssz.","Tételszám","Tétel szövege","Menny.","Egység","Anyag egységár","Díj egységre","Anyag összesen","Díj összesen"]
[1,"62-002-21.1-0610718","Egyéb használatos szegélykövek, útszegélyek készítése, alapárok kiemelése nélkül, betonhézagolással, 25 vagy 30 cm hosszú elemekből A Beton-Viacolor süllyesztett szegélykő ",740,"m"]
[]
[]
[null,null,"Munkanem összesen:",{"$nulls":4},{"$f":"ROUND(SUM(H2:H4),0)","v":0},{"$f":"ROUND(SUM(I2:I4),0)","v":0}]

{"sheet":"Bitumenes alap és makadámburkol","index":5,"n_rows":8,"n_cols":9,"rows_kept":8,"cut":false,"hidden":false,"merged":[]}
["Ssz.","Tételszám","Tétel szövege","Menny.","Egység","Anyag egységár","Díj egységre","Anyag összesen","Díj összesen"]
[2,"63-103-1.31.2.4-0750101","Egyéb közutak bitumenes burkolatának készítése, hengerelt aszfalt kopóréteg készítése (AC), az alatta lévő réteg felületének előzetes letakarításával és bitumenes permetezéssel, 4 méter szélességig, AC 11 kötő aszfaltkeverékből,",98,"m3"]
[null,null,"35-50 mm vastagságban terítve Kopóréteg AC11 kötő 35/50, AC11 kötő 50/70 típusú bitumennel, N igénybevételi kat. útszakaszok kötőrétege, homokkal, zúzott kővel"]
[]
[2,"63-103-1.31.1.3-0750206","Egyéb közutak bitumenes burkolatának készítése, hengerelt aszfalt kopóréteg készítése (AC), az alatta lévő réteg felületének előzetes letakarításával és bitumenes permetezéssel, 3,2 méter szélességig, AC 11 kopó aszfaltkeverékből, 35-55 mm vastagságban",98,"m3"]
[null,null,"terítve Kopóréteg AC11 kopó 50/70, AC11 kopó 70/100 típusú bitumennel, N igénybevételi kat. útszakaszok kopórétege, homokkal, zúzalékkal"]
[]
[null,null,"Munkanem összesen:",{"$nulls":4},{"$f":"ROUND(SUM(H2:H7),0)","v":0},{"$f":"ROUND(SUM(I2:I7),0)","v":0}]

{"sheet":"Útpályatartozékok készítése","index":6,"n_rows":6,"n_cols":9,"rows_kept":6,"cut":false,"hidden":false,"merged":[]}
["Ssz.","Tételszám","Tétel szövege","Menny.","Egység","Anyag egységár","Díj egységre","Anyag összesen","Díj összesen"]
[1,"68-002-1.1-0020444","Közúti jelző- és útbaigazító táblák fémanyagúoszlopainak elhelyezése betonalappal,földmunkával, I-IV. osztályú talajban, 89 mm átmérőjű alumínium oszlop, 1,5-5,5 m hosszú, előregyártott betonalappal Horganyzott tartóoszlop 89x2500",4,"db",8000,2000,{"$f":"ROUND(D2*F2, 0)","v":32000},{"$f":"ROUND(D2*G2, 0)","v":8000}]
[]
[2,"68-002-2.3-0451144","Közúti jelző- és útbaigazító táblák felszerelése, parkoló táblák, 1-1 bilincskészlettel Alumínium jelzőtábla, fényvisszaverő.",4,"db",8000,2000,{"$f":"ROUND(D4*F4, 0)","v":32000},{"$f":"ROUND(D4*G4, 0)","v":8000}]
[]
[null,null,"Munkanem összesen:",{"$nulls":4},{"$f":"ROUND(SUM(H2:H5),0)","v":64000},{"$f":"ROUND(SUM(I2:I5),0)","v":16000}]